fUSD/lending_fUSD_20250119
["ID","MTS","AMOUNT","RATE_DAILY","PERIOD"]
[349536040,1737283875662,-500.0,0.0002,2]
[349536041,1737283875672,-495.07382589,0.0002,2]
[349536042,1737283875681,-500.0,0.0002,2]
[349536043,1737283875693,-626.38,0.0002,2]
[349536044,1737283875702,-780.64,0.0002,2]
[349536045,1737283875712,-1000.0,0.0002,2]
[349536046,1737283875722,-633.29,0.0002,2]
[349536047,1737283875731,-500.0,0.0002,2]
[349536048,1737283875741,-500.0,0.0002,2]
[349536049,1737283875751,-500.0,0.0002,2]
[349536050,1737283875760,-500.0,0.0002,2]
[349536051,1737283875770,-500.0,0.0002,2]
[349536052,1737283875779,-1313.29,0.0002,2]
[349536053,1737283875788,-515.63720853,0.0002,2]
[349536054,1737283875798,-500.0,0.0002,2]
[349536055,1737283875807,-659.22,0.0002,2]
[349536056,1737283875816,-917.59,0.0002,2]
[349536057,1737283875825,-500.0,0.0002,2]
[349536058,1737283875835,-500.0,0.0002,2]
[349536059,1737283875845,-528.18674314,0.0002,2]
[349536060,1737283875855,-562.37,0.0002,2]
[349536061,1737283875865,-633.86,0.0002,2]
[349536062,1737283875874,-500.0,0.0002,2]
[349536063,1737283875884,-1551.56,0.0002,2]
[349536064,1737283875894,-497.050586,0.0002,2]
[349536065,1737283875905,-500.0,0.0002,2]
[349536066,1737283875915,-500.0,0.0002,2]
[349536067,1737283875925,-1631.28,0.0002,2]
[349536068,1737283875936,-506.11100245,0.0002,2]
[349536069,1737283875946,-509.87,0.0002,2]
[349536070,1737283875956,-500.0,0.0002,2]
[349536071,1737283875966,-500.0,0.0002,2]
[349536072,1737283875976,-500.0,0.0002,2]
[349536073,1737283875985,-497.050586,0.0002,2]
[349536074,1737283875995,-500.0,0.0002,2]
[349536075,1737283876006,-11562.91,0.0002,2]
[349536076,1737283876016,-500.0,0.0002,2]
[349536077,1737283876026,-530.33518343,0.0002,2]
[349536078,1737283876036,-2945.05,0.0002,2]
[349536079,1737283876045,-1035.44,0.0002,2]
[349536080,1737283876055,-500.0,0.0002,2]
[349536081,1737283876064,-1288.18,0.0002,2]
[349536082,1737283876074,-500.0,0.0002,2]
[349536083,1737283876084,-500.0,0.0002,2]
[349536084,1737283876094,-604.12,0.0002,2]
[349536085,1737283876103,-701.15,0.0002,2]
[349536086,1737283876115,-479.75117011,0.0002,2]
[349536087,1737283876124,-684.27,0.0002,2]
[349536088,1737283876134,-500.0,0.0002,2]
[349536089,1737283876143,-726.31,0.0002,2]
[349536090,1737283876152,-500.0,0.0002,2]
[349536091,1737283876161,-693.12,0.0002,2]
[349536092,1737283876171,-1243.35,0.0002,2]
[349536093,1737283876180,-500.0,0.0002,2]
[349536094,1737283876191,-500.0,0.0002,2]
[349536095,1737283876200,-527.99389173,0.0002,2]
[349536096,1737283876212,-583.23,0.0002,2]
[349536097,1737283876223,-2000.0,0.0002001,2]
[349536098,1737283876232,-3946.845066,0.0002002,2]
[349536099,1737283876242,-1000.99716461,0.00020021,2]
[349536100,1737283876255,-501.30588626,0.00020021,2]
[349536101,1737283876266,-1000.0,0.00020021,2]
[349536102,1737283876276,-1000.0,0.00020021,2]
[349536103,1737283876285,-209.0,0.0002003,2]
[349536104,1737283876295,-150.0,0.00020063,2]
[349536105,1737283876305,-1332.66,0.00020089,2]
[349536106,1737283876315,-1138.07,0.00020125,2]
[349536107,1737283876324,-871.3353095,0.00020126,2]
[349536108,1737283876335,-500.0,0.00020136,2]
[349536109,1737283876344,-203.94393132,0.0002015,2]
[349536110,1737283876354,-827.35,0.000202,2]
[349536111,1737283876364,-1396.8218,0.000202,2]
[349536112,1737283876374,-954.0291,0.000202,2]
[349536113,1737283876384,-1549.7327,0.000202,2]
[349536114,1737283876393,-677.09,0.00020213,2]
[349536115,1737283876403,-875.1,0.00020213,2]
[349536116,1737283876413,-150.0,0.00020213,2]
[349536117,1737283876436,-150.0,0.00020213,2]
[349536118,1737283876451,-437.55,0.00020213,2]
[349536119,1737283876469,-437.55,0.00020213,2]
[349536120,1737283876486,-150.0,0.00020213,2]
[349536121,1737283876496,-437.55,0.00020213,2]
[349536122,1737283876507,-300.0,0.00020213,2]
[349536123,1737283876517,-437.55,0.00020213,2]
[349536124,1737283876527,-437.55,0.00020213,2]
[349536125,1737283876536,-437.55,0.00020213,2]
[349536126,1737283876546,-151.0,0.00020213,2]
[349536127,1737283876555,-165.177093,0.00020213,2]
[349536128,1737283876565,-165.177093,0.00020213,2]
[349536129,1737283876696,-156.895581,0.00020213,2]
[349536130,1737283876707,-156.895581,0.00020213,2]
[349536131,1737283876716,-215.623532,0.00020213,2]
[349536132,1737283876726,-215.623532,0.00020213,2]
[349536133,1737283876736,-1499.614895,0.00020213,2]
[349536134,1737283876746,-1499.614895,0.00020213,2]
[349536135,1737283876756,-151.0,0.00020213,2]
[349536136,1737283876765,-151.0,0.00020213,2]
[349536137,1737283876775,-1394.781451,0.00020213,2]
[349536138,1737283876784,-1394.781451,0.00020213,2]
[349536139,1737283876794,-497.050586,0.00020213,2]
[349536140,1737283876804,-497.050586,0.00020213,2]
[349536141,1737283876813,-1152.0,0.00020252,2]
[349536142,1737283876822,-693.970146,0.00020273,2]
[349536143,1737283876831,-1179.248694,0.00020273,2]
[349536144,1737283876840,-500.0,0.00020273,2]
[349536145,1737283876850,-500.0,0.00020273,2]
[349536146,1737283876859,-500.0,0.00020273,2]
[349536147,1737283876869,-500.0,0.00020273,2]
[349536148,1737283876879,-500.0,0.00020273,2]
[349536149,1737283876888,-500.0,0.00020273,2]
[349536150,1737283876898,-500.0,0.00020273,2]
[349536151,1737283876908,-500.0,0.00020273,2]
[349536152,1737283876917,-500.0,0.00020273,2]
[349536153,1737283876927,-500.0,0.00020273,2]
[349536154,1737283876938,-500.0,0.00020273,2]
[349536155,1737283876948,-500.0,0.00020273,2]
[349536156,1737283876957,-500.0,0.00020273,2]
[349536157,1737283876966,-500.0,0.00020273,2]
[349536158,1737283876976,-500.0,0.00020273,2]
[349536159,1737283876987,-500.0,0.00020273,2]
[349536160,1737283876998,-500.0,0.00020273,2]
[349536161,1737283877007,-500.0,0.00020273,2]
[349536162,1737283877017,-879.97,0.00020273,2]
[349536163,1737283877028,-538.6,0.00020273,2]
[349536164,1737283877037,-455.00976266,0.00020273,2]
[349536165,1737283877047,-511.62398227,0.00020273,2]
[349536166,1737283877056,-500.0,0.00020273,2]
[349536167,1737283877066,-286.06244707,0.00020273,2]
[349536168,1737283877076,-503.95337586,0.00020273,2]
[349536169,1737283877086,-506.32,0.00020273,2]
[349536170,1737283877095,-503.21153807,0.00020273,2]
[349536171,1737283877105,-350.0,0.00020273,2]
[349536172,1737283877115,-1099.14,0.00020273,2]
[349536173,1737283877125,-500.0,0.00020273,2]
[349536174,1737283877134,-500.0,0.00020273,2]
[349536175,1737283877144,-500.0,0.00020273,2]
[349536176,1737283877153,-672.06,0.00020273,2]
[349536177,1737283877163,-509.88287571,0.00020273,2]
[349536178,1737283877172,-500.0,0.00020273,2]
[349536179,1737283877181,-500.0,0.00020273,2]
[349536180,1737283877196,-500.0,0.00020273,2]
[349536181,1737283877206,-500.0,0.00020273,2]
[349536182,1737283877215,-500.0,0.00020273,2]
[349536183,1737283877224,-500.0,0.00020273,2]
[349536184,1737283877233,-500.0,0.00020273,2]
[349536185,1737283877243,-500.0,0.00020273,2]
[349536186,1737283877254,-500.0,0.00020273,2]
[349536187,1737283877265,-500.0,0.00020273,2]
[349536188,1737283877274,-500.0,0.00020273,2]
[349536189,1737283877284,-520.19048908,0.00020273,2]
[349536190,1737283877295,-500.0,0.00020273,2]
[349536191,1737283877304,-500.0,0.00020273,2]
[349536192,1737283877313,-500.0,0.00020273,2]
[349536193,1737283877323,-500.0,0.00020273,2]
[349536194,1737283877333,-500.0,0.00020273,2]
[349536195,1737283877343,-500.0,0.00020273,2]
[349536196,1737283877352,-500.0,0.00020273,2]
[349536197,1737283877362,-500.0,0.00020273,2]
[349536198,1737283877371,-500.0,0.00020273,2]
[349536199,1737283877380,-500.0,0.00020273,2]
[349536200,1737283877390,-578.81340966,0.00020273,2]
[349536201,1737283877399,-500.0,0.00020273,2]
[349536202,1737283877409,-500.0,0.00020273,2]
[349536203,1737283877418,-500.0,0.00020273,2]
[349536204,1737283877428,-462.44006398,0.00020273,2]
[349536205,1737283877437,-500.0,0.00020273,2]
[349536206,1737283877446,-517.25858876,0.00020273,2]
[349536207,1737283877455,-500.0,0.00020273,2]
[349536208,1737283877464,-791.74,0.00020273,2]
[349536209,1737283877473,-635.31582746,0.00020273,2]
[349536210,1737283877486,-500.0,0.00020273,2]
[349536211,1737283877495,-500.0,0.00020273,2]
[349536212,1737283877504,-518.8938184,0.00020273,2]
[349536213,1737283877513,-500.0,0.00020273,2]
[349536214,1737283877524,-500.0,0.00020273,2]
[349536215,1737283877533,-519.22147074,0.00020273,2]
[349536216,1737283877542,-527.593227,0.00020273,2]
[349536217,1737283877551,-500.0,0.00020273,2]
[349536218,1737283877560,-500.0,0.00020273,2]
[349536219,1737283877569,-500.0,0.00020273,2]
[349536220,1737283877578,-506.60787056,0.00020273,2]
[349536221,1737283877587,-500.0,0.00020273,2]
[349536222,1737283877597,-500.0,0.00020273,2]
[349536223,1737283877606,-500.0,0.00020273,2]
[349536224,1737283877615,-533.94,0.00020273,2]
[349536225,1737283877624,-500.0,0.00020273,2]
[349536226,1737283877633,-500.0,0.00020273,2]
[349536227,1737283877642,-500.0,0.00020273,2]
[349536228,1737283877651,-512.42714737,0.00020273,2]
[349536229,1737283877660,-508.03663349,0.00020273,2]
[349536230,1737283877668,-500.0,0.00020273,2]
[349536231,1737283877678,-969.95,0.00020273,2]
[349536232,1737283877687,-500.0,0.00020273,2]
[349536233,1737283877696,-500.0,0.00020273,2]
[349536234,1737283877705,-500.0,0.00020273,2]
[349536235,1737283877714,-500.0,0.00020273,2]
[349536236,1737283877723,-509.61316902,0.00020273,2]
[349536237,1737283877732,-500.0,0.00020273,2]
[349536238,1737283877741,-500.0,0.00020273,2]
[349536239,1737283877750,-500.0,0.00020273,2]
[349536240,1737283877759,-500.0,0.00020273,2]
[349536241,1737283877768,-500.0,0.00020273,2]
[349536242,1737283877777,-1154.09,0.00020273,2]
[349536243,1737283877786,-625.30516773,0.00020273,2]
[349536244,1737283877795,-546.77,0.00020273,2]
[349536245,1737283877805,-500.0,0.00020273,2]
[349536246,1737283877814,-500.0,0.00020273,2]
[349536247,1737283877823,-500.0,0.00020273,2]
[349536248,1737283877832,-1248.1,0.00020273,2]
[349536249,1737283877841,-500.0,0.00020273,2]
[349536250,1737283877850,-500.0,0.00020273,2]
[349536251,1737283877859,-857.42,0.00020273,2]
[349536252,1737283877869,-500.0,0.00020273,2]
[349536253,1737283877878,-1848.61,0.00020273,2]
[349536254,1737283877887,-500.0,0.00020273,2]
[349536255,1737283877896,-1098.96,0.00020273,2]
[349536256,1737283877906,-500.0,0.00020273,2]
[349536257,1737283877915,-500.0,0.00020273,2]
[349536258,1737283877924,-500.0,0.00020273,2]
[349536259,1737283877934,-2979.32,0.00020273,2]
[349536260,1737283877946,-500.0,0.00020273,2]
[349536261,1737283877955,-374.28206169,0.00020273,2]
[349536262,1737283877964,-500.0,0.00020273,2]
[349536263,1737283877973,-793.62,0.00020273,2]
[349536264,1737283877983,-500.0,0.00020273,2]
[349536265,1737283877993,-500.0,0.00020273,2]
[349536266,1737283878003,-500.0,0.00020273,2]
[349536267,1737283878012,-515.18541379,0.00020273,2]
[349536268,1737283878021,-500.0,0.00020273,2]
[349536269,1737283878030,-1198.76,0.00020273,2]
[349536270,1737283878039,-572.69,0.00020273,2]
[349536271,1737283878048,-500.0,0.00020273,2]
[349536272,1737283878058,-500.0,0.00020273,2]
[349536273,1737283878068,-500.0,0.00020273,2]
[349536274,1737283878077,-500.0,0.00020273,2]
[349536275,1737283878087,-500.0,0.00020273,2]
[349536276,1737283878097,-745.22,0.00020273,2]
[349536277,1737283878107,-500.0,0.00020273,2]
[349536278,1737283878116,-632.82828534,0.00020273,2]
[349536279,1737283878126,-500.0,0.00020273,2]
[349536280,1737283878136,-590.61,0.00020273,2]
[349536281,1737283878145,-500.0,0.00020273,2]
[349536282,1737283878155,-500.0,0.00020273,2]
[349536283,1737283878164,-500.0,0.00020273,2]
[349536284,1737283878173,-500.0,0.00020273,2]
[349536285,1737283878183,-500.0,0.00020273,2]
[349536286,1737283878197,-500.0,0.00020273,2]
[349536287,1737283878207,-713.24,0.00020273,2]
[349536288,1737283878216,-451.56219216,0.00020273,2]
[349536289,1737283878226,-500.0,0.00020273,2]
[349536290,1737283878235,-151.0,0.00020273,2]
[349536291,1737283878245,-523.75,0.00020273,2]
[349536292,1737283878258,-536.69,0.00020273,2]
[349536293,1737283878268,-500.0,0.00020273,2]
[349536294,1737283878277,-500.0,0.00020273,2]
[349536295,1737283878287,-917.76,0.00020273,2]
[349536296,1737283878298,-500.0,0.00020273,2]
[349536297,1737283878307,-512.37,0.00020273,2]
[349536298,1737283878316,-500.0,0.00020273,2]
[349536299,1737283878327,-224.81106067,0.00020273,2]
[349536300,1737283878337,-530.94456267,0.00020273,2]
[349536301,1737283878347,-541.39,0.00020273,2]
[349536302,1737283878356,-766.68,0.00020273,2]
[349536303,1737283878366,-776.23,0.00020273,2]
[349536304,1737283878376,-454.04769431,0.00020273,2]
[349536305,1737283878385,-500.0,0.00020273,2]
[349536306,1737283878395,-500.0,0.00020273,2]
[349536307,1737283878404,-500.0,0.00020273,2]
[349536308,1737283878413,-500.0,0.00020273,2]
[349536309,1737283878423,-500.0,0.00020273,2]
[349536310,1737283878433,-500.0,0.00020273,2]
[349536311,1737283878447,-500.0,0.00020273,2]
[349536312,1737283878456,-518.56,0.00020273,2]
[349536314,1737283878578,-500.0,0.00020273,2]
[349536315,1737283878588,-292.4861927,0.00020273,2]
[349536316,1737283878597,-500.0,0.00020273,2]
[349536317,1737283878607,-783.5,0.00020273,2]
[349536318,1737283878617,-500.0,0.00020273,2]
[349536319,1737283878626,-584.68,0.00020273,2]
[349536320,1737283878636,-500.0,0.00020273,2]
[349536321,1737283878645,-500.0,0.00020273,2]
[349536322,1737283878655,-500.0,0.00020273,2]
[349536323,1737283878665,-241.55888075,0.00020273,2]
[349536324,1737283878674,-500.0,0.00020273,2]
[349536325,1737283878684,-367.02319684,0.00020273,2]
[349536326,1737283878696,-1116.59,0.00020273,2]
[349536327,1737283878706,-500.0,0.00020273,2]
[349536328,1737283878715,-500.0,0.00020273,2]
[349536329,1737283878725,-500.0,0.00020273,2]
[349536330,1737283878734,-500.0,0.00020273,2]
[349536331,1737283878745,-551.26715559,0.00020273,2]
[349536332,1737283878754,-500.0,0.00020273,2]
[349536333,1737283878764,-500.0,0.00020273,2]
[349536334,1737283878774,-500.0,0.00020273,2]
[349536335,1737283878784,-500.0,0.00020273,2]
[349536336,1737283878794,-500.0,0.00020273,2]
[349536337,1737283878804,-500.0,0.00020273,2]
[349536338,1737283878814,-702.08,0.00020273,2]
[349536339,1737283878823,-500.0,0.00020273,2]
[349536340,1737283878832,-2602.19,0.00020273,2]
[349536341,1737283878842,-500.0,0.00020273,2]
[349536342,1737283878852,-528.42644193,0.00020273,2]
[349536343,1737283878861,-500.0,0.00020273,2]
[349536344,1737283878871,-500.0,0.00020273,2]
[349536345,1737283878882,-500.0,0.00020273,2]
[349536346,1737283878892,-500.0,0.00020273,2]
[349536347,1737283878901,-500.0,0.00020273,2]
[349536348,1737283878911,-500.0,0.00020273,2]
[349536349,1737283878921,-500.0,0.00020273,2]
[349536350,1737283878930,-565.03,0.00020273,2]
[349536351,1737283878942,-500.0,0.00020273,2]
[349536352,1737283878952,-500.0,0.00020273,2]
[349536353,1737283878961,-500.0,0.00020273,2]
[349536354,1737283878971,-500.0,0.00020273,2]
[349536355,1737283878981,-500.0,0.00020273,2]
[349536356,1737283878990,-500.0,0.00020273,2]
[349536357,1737283879000,-473.18882447,0.00020273,2]
[349536358,1737283879009,-500.0,0.00020273,2]
[349536359,1737283879019,-500.0,0.00020273,2]
[349536360,1737283879028,-500.0,0.00020273,2]
[349536361,1737283879038,-500.0,0.00020273,2]
[349536362,1737283879048,-500.0,0.00020273,2]
[349536363,1737283879057,-500.0,0.00020273,2]
[349536364,1737283879068,-500.0,0.00020273,2]
[349536365,1737283879077,-500.0,0.00020273,2]
[349536366,1737283879087,-500.0,0.00020273,2]
[349536367,1737283879096,-500.0,0.00020273,2]
[349536368,1737283879106,-500.0,0.00020273,2]
[349536369,1737283879116,-500.0,0.00020273,2]
[349536370,1737283879126,-500.0,0.00020273,2]
[349536371,1737283879135,-500.0,0.00020273,2]
[349536372,1737283879144,-500.0,0.00020273,2]
[349536373,1737283879153,-502.67729321,0.00020273,2]
[349536374,1737283879162,-500.0,0.00020273,2]
[349536375,1737283879172,-500.0,0.00020273,2]
[349536376,1737283879182,-500.0,0.00020273,2]
[349536377,1737283879192,-500.0,0.00020273,2]
[349536378,1737283879201,-500.0,0.00020273,2]
[349536379,1737283879211,-500.0,0.00020273,2]
[349536380,1737283879220,-500.0,0.00020273,2]
[349536381,1737283879230,-500.0,0.00020273,2]
[349536382,1737283879240,-500.0,0.00020273,2]
[349536383,1737283879250,-500.0,0.00020273,2]
[349536384,1737283879265,-500.0,0.00020273,2]
[349536385,1737283879275,-500.0,0.00020273,2]
[349536386,1737283879285,-500.0,0.00020273,2]
[349536387,1737283879295,-500.0,0.00020273,2]
[349536388,1737283879305,-500.0,0.00020273,2]
[349536389,1737283879315,-500.0,0.00020273,2]
[349536390,1737283879324,-500.0,0.00020273,2]
[349536391,1737283879335,-500.0,0.00020273,2]
[349536392,1737283879344,-521.28547759,0.00020273,2]
[349536393,1737283879354,-500.0,0.00020273,2]
[349536394,1737283879364,-500.0,0.00020273,2]
[349536395,1737283879374,-500.0,0.00020273,2]
[349536396,1737283879384,-500.0,0.00020273,2]
[349536397,1737283879394,-500.0,0.00020273,2]
[349536398,1737283879404,-500.0,0.00020273,2]
[349536399,1737283879414,-500.0,0.00020273,2]
[349536400,1737283879424,-500.0,0.00020273,2]
[349536401,1737283879434,-500.0,0.00020273,2]
[349536402,1737283879445,-383.99387813,0.00020273,2]
[349536403,1737283879455,-500.0,0.00020273,2]
[349536404,1737283879465,-500.0,0.00020273,2]
[349536405,1737283879474,-500.0,0.00020273,2]
[349536406,1737283879483,-500.0,0.00020273,2]
[349536407,1737283879493,-2043.55,0.00020273,2]
[349536408,1737283879503,-500.0,0.00020273,2]
[349536409,1737283879513,-165.177093,0.00020273,2]
[349536410,1737283879522,-500.0,0.00020273,2]
[349536411,1737283879532,-549.86,0.00020273,2]
[349536412,1737283879541,-542.77691039,0.00020273,2]
[349536413,1737283879550,-165.177093,0.00020273,2]
[349536414,1737283879560,-500.0,0.00020273,2]
[349536415,1737283879569,-500.0,0.00020273,2]
[349536416,1737283879578,-500.0,0.00020273,2]
[349536417,1737283879587,-546.70669986,0.00020273,2]
[349536418,1737283879597,-500.0,0.00020273,2]
[349536419,1737283879608,-500.0,0.00020273,2]
[349536420,1737283879618,-500.0,0.00020273,2]
[349536421,1737283879627,-500.0,0.00020273,2]
[349536422,1737283879638,-500.0,0.00020273,2]
[349536423,1737283879648,-500.0,0.00020273,2]
[349536424,1737283879658,-500.0,0.00020273,2]
[349536425,1737283879667,-500.0,0.00020273,2]
[349536426,1737283879677,-500.0,0.00020273,2]
[349536427,1737283879686,-500.0,0.00020273,2]
[349536428,1737283879697,-515.94904507,0.00020273,2]
[349536429,1737283879707,-500.0,0.00020273,2]
[349536430,1737283879716,-500.0,0.00020273,2]
[349536431,1737283879726,-500.0,0.00020273,2]
[349536432,1737283879736,-156.895581,0.00020273,2]
[349536433,1737283879746,-500.0,0.00020273,2]
[349536434,1737283879757,-500.0,0.00020273,2]
[349536435,1737283879767,-500.0,0.00020273,2]
[349536436,1737283879776,-156.895581,0.00020273,2]
[349536437,1737283879786,-500.0,0.00020273,2]
[349536438,1737283879795,-500.0,0.00020273,2]
[349536439,1737283879805,-500.0,0.00020273,2]
[349536440,1737283879815,-215.623532,0.00020273,2]
[349536441,1737283879824,-528.74,0.00020273,2]
[349536442,1737283879834,-215.623532,0.00020273,2]
[349536443,1737283879843,-580.43,0.00020273,2]
[349536444,1737283879852,-605.84,0.00020273,2]
[349536445,1737283879862,-311.16996962,0.00020273,2]
[349536446,1737283879871,-510.37328792,0.00020273,2]
[349536447,1737283879881,-637.03,0.00020273,2]
[349536448,1737283879890,-500.0,0.00020273,2]
[349536449,1737283879899,-500.0,0.00020273,2]
[349536450,1737283879909,-521.4,0.00020273,2]
[349536451,1737283879919,-500.0,0.00020273,2]
[349536452,1737283879928,-500.0,0.00020273,2]
[349536453,1737283879939,-627.47,0.00020273,2]
[349536454,1737283879949,-500.0,0.00020273,2]
[349536455,1737283879959,-500.0,0.00020273,2]
[349536456,1737283879969,-500.0,0.00020273,2]
[349536457,1737283879979,-500.0,0.00020273,2]
[349536458,1737283879989,-500.0,0.00020273,2]
[349536459,1737283879998,-500.0,0.00020273,2]
[349536460,1737283880008,-579.9,0.00020273,2]
[349536461,1737283880018,-500.0,0.00020273,2]
[349536462,1737283880028,-500.0,0.00020273,2]
[349536463,1737283880038,-500.0,0.00020273,2]
[349536464,1737283880047,-500.0,0.00020273,2]
[349536465,1737283880056,-500.0,0.00020273,2]
[349536466,1737283880066,-500.0,0.00020273,2]
[349536467,1737283880075,-500.0,0.00020273,2]
[349536468,1737283880085,-500.0,0.00020273,2]
[349536469,1737283880095,-500.0,0.00020273,2]
[349536470,1737283880104,-500.0,0.00020273,2]
[349536471,1737283880114,-500.0,0.00020273,2]
[349536472,1737283880123,-500.0,0.00020273,2]
[349536473,1737283880132,-500.0,0.00020273,2]
[349536474,1737283880142,-500.0,0.00020273,2]
[349536475,1737283880150,-500.0,0.00020273,2]
[349536476,1737283880160,-479.56550444,0.00020273,2]
[349536477,1737283880169,-500.0,0.00020273,2]
[349536478,1737283880178,-500.0,0.00020273,2]
[349536479,1737283880187,-429.95265698,0.00020273,2]
[349536480,1737283880196,-500.0,0.00020273,2]
[349536481,1737283880208,-1003.77,0.00020273,2]
[349536482,1737283880217,-500.0,0.00020273,2]
[349536483,1737283880227,-500.0,0.00020273,2]
[349536484,1737283880343,-1030.56,0.00020273,2]
[349536485,1737283880355,-500.0,0.00020273,2]
[349536486,1737283880365,-514.0791678,0.00020273,2]
[349536487,1737283880374,-500.0,0.00020273,2]
[349536488,1737283880385,-631.77,0.00020273,2]
[349536489,1737283880395,-2323.77,0.00020273,2]
[349536490,1737283880405,-635.02,0.00020273,2]
[349536491,1737283880414,-500.0,0.00020273,2]
[349536492,1737283880424,-577.63,0.00020273,2]
[349536493,1737283880434,-500.0,0.00020273,2]
[349536494,1737283880445,-500.0,0.00020273,2]
[349536495,1737283880455,-3097.0,0.00020273,2]
[349536496,1737283880465,-500.0,0.00020273,2]
[349536497,1737283880474,-1005.63,0.00020273,2]
[349536498,1737283880483,-500.0,0.00020273,2]
[349536499,1737283880492,-500.0,0.00020273,2]
[349536500,1737283880502,-500.0,0.00020273,2]
[349536501,1737283880511,-500.0,0.00020273,2]
[349536502,1737283880520,-500.0,0.00020273,2]
[349536503,1737283880531,-321.7072501,0.00020273,2]
[349536504,1737283880540,-1256.94,0.00020273,2]
[349536505,1737283880550,-11879.94,0.00020273,2]
[349536506,1737283880560,-1216.46,0.00020273,2]
[349536507,1737283880570,-500.0,0.00020273,2]
[349536508,1737283880579,-608.69,0.00020273,2]
[349536509,1737283880590,-500.0,0.00020273,2]
[349536510,1737283880599,-500.0,0.00020273,2]
[349536511,1737283880608,-500.0,0.00020273,2]
[349536512,1737283880618,-500.0,0.00020273,2]
[349536513,1737283880628,-500.0,0.00020273,2]
[349536514,1737283880638,-688.32,0.00020273,2]
[349536515,1737283880647,-3397.4,0.00020273,2]
[349536516,1737283880657,-500.0,0.00020273,2]
[349536517,1737283880668,-500.0,0.00020273,2]
[349536518,1737283880679,-500.0,0.00020273,2]
[349536519,1737283880689,-500.0,0.00020273,2]
[349536520,1737283880699,-509.17688416,0.00020273,2]
[349536521,1737283880709,-500.0,0.00020273,2]
[349536522,1737283880719,-500.0,0.00020273,2]
[349536523,1737283880728,-500.0,0.00020273,2]
[349536524,1737283880737,-500.0,0.00020273,2]
[349536525,1737283880747,-623.00274085,0.00020273,2]
[349536526,1737283880756,-500.0,0.00020273,2]
[349536527,1737283880766,-5667.54,0.00020273,2]
[349536528,1737283880775,-1735.14,0.00020273,2]
[349536529,1737283880785,-500.0,0.00020273,2]
[349536530,1737283880794,-1499.614895,0.00020273,2]
[349536531,1737283880804,-500.0,0.00020273,2]
[349536532,1737283880814,-942.38,0.00020273,2]
[349536533,1737283880824,-1499.614895,0.00020273,2]
[349536534,1737283880833,-500.0,0.00020273,2]
[349536535,1737283880843,-500.0,0.00020273,2]
[349536536,1737283880852,-500.0,0.00020273,2]
[349536537,1737283880862,-617.68,0.00020273,2]
[349536538,1737283880871,-500.0,0.00020273,2]
[349536539,1737283880881,-3188.95,0.00020273,2]
[349536540,1737283880890,-500.0,0.00020273,2]